[Event "Titled Tuesday Blitz June 20 Early 2023"]
[White "Sadhwani, Raunak"]
[Black "Kjartansson, David"]
[WhiteFideId "35093487"]
[BlackFideId "2301130"]
[WhiteElo "2631"]
[BlackElo "2333"]
[Result "1-0"]
[Round "2"]
[TimeControl "180+2"]
[Date "2023.06.20"]
[WhiteClock "0:00:04"]
[BlackClock "0:00:00"]
[Board "6"]

1. Nf3 {[%clk 0:03:00]}  d6 {[%clk 0:02:55]} 2. d4 {[%clk 0:03:01]}  Nf6 {[%clk 0:02:54]} 3. Nc3 {[%clk 0:03:01]}  Nbd7 {[%clk 0:02:54]} 4. e4 {[%clk 0:03:01]}  e5 {[%clk 0:02:55]} 5. Bc4 {[%clk 0:03:02]}  Be7 {[%clk 0:02:55]} 6. O-O {[%clk 0:03:02]}  c6 {[%clk 0:02:53]} 7. Re1 {[%clk 0:03:02]}  Qc7 {[%clk 0:02:53]} 8. a4 {[%clk 0:03:03]}  h6 {[%clk 0:02:52]} 9. h3 {[%clk 0:02:59]}  Nf8 {[%clk 0:02:51]} 10. Nh4 {[%clk 0:02:53]}  exd4 {[%clk 0:02:40]} 11. Qxd4 {[%clk 0:02:49]}  Ne6 {[%clk 0:02:39]} 12. Qd1 {[%clk 0:02:48]}  Nc5 {[%clk 0:02:35]} 13. Qf3 {[%clk 0:02:38]}  Be6 {[%clk 0:02:19]} 14. Bxe6 {[%clk 0:02:35]}  Nxe6 {[%clk 0:02:19]} 15. Nf5 {[%clk 0:02:35]}  O-O-O {[%clk 0:02:08]} 16. Be3 {[%clk 0:02:32]}  Kb8 {[%clk 0:02:08]} 17. Rad1 {[%clk 0:02:28]}  Rhe8 {[%clk 0:02:04]} 18. Qg3 {[%clk 0:02:16]}  Bf8 {[%clk 0:01:58]} 19. f3 {[%clk 0:02:06]}  b6 {[%clk 0:01:45]} 20. Re2 {[%clk 0:01:51]}  Nh5 {[%clk 0:01:38]} 21. Qf2 {[%clk 0:01:50]}  Nhf4 {[%clk 0:01:35]} 22. Red2 {[%clk 0:01:50]}  g6 {[%clk 0:01:34]} 23. Nd4 {[%clk 0:01:44]}  g5 {[%clk 0:01:12]} 24. Nf5 {[%clk 0:01:36]}  Kb7 {[%clk 0:01:03]} 25. b4 {[%clk 0:01:35]}  d5 {[%clk 0:00:53]} 26. exd5 {[%clk 0:01:34]}  cxd5 {[%clk 0:00:52]} 27. Nb5 {[%clk 0:01:17]}  Qc4 {[%clk 0:00:52]} 28. c3 {[%clk 0:01:03]}  Rd7 {[%clk 0:00:32]} 29. Kh2 {[%clk 0:00:43]}  a6 {[%clk 0:00:31]} 30. Nbd4 {[%clk 0:00:43]}  Qxc3 {[%clk 0:00:25]} 31. Rc2 {[%clk 0:00:43]}  Qxb4 {[%clk 0:00:24]} 32. Rb2 {[%clk 0:00:43]}  Qxa4 {[%clk 0:00:23]} 33. Nxe6 {[%clk 0:00:36]}  Rxe6 {[%clk 0:00:21]} 34. Rdb1 {[%clk 0:00:27]}  b5 {[%clk 0:00:21]} 35. Ra2 {[%clk 0:00:26]}  Qc4 {[%clk 0:00:18]} 36. Rc2 {[%clk 0:00:26]}  Qa4 {[%clk 0:00:18]} 37. Nd4 {[%clk 0:00:23]}  Nd3 {[%clk 0:00:14]} 38. Qd2 {[%clk 0:00:20]}  Bd6+ {[%clk 0:00:14]} 39. Kh1 {[%clk 0:00:21]}  Nf4 {[%clk 0:00:11]} 40. Nxe6 {[%clk 0:00:19]}  fxe6 {[%clk 0:00:12]} 41. Rbc1 {[%clk 0:00:16]}  Rc7 {[%clk 0:00:11]} 42. Rxc7+ {[%clk 0:00:15]}  Bxc7 {[%clk 0:00:12]} 43. Qc3 {[%clk 0:00:15]}  Qc4 {[%clk 0:00:11]} 44. Qg7 {[%clk 0:00:16]}  Nh5 {[%clk 0:00:06]} 45. Rxc4 {[%clk 0:00:08]}  Nxg7 {[%clk 0:00:06]} 46. Rc1 {[%clk 0:00:09]}  Nf5 {[%clk 0:00:06]} 47. Bd2 {[%clk 0:00:09]}  Bb6 {[%clk 0:00:07]} 48. g4 {[%clk 0:00:08]}  Ng3+ {[%clk 0:00:06]} 49. Kg2 {[%clk 0:00:08]}  Ne2 {[%clk 0:00:07]} 50. Re1 {[%clk 0:00:09]}  Nd4 {[%clk 0:00:07]} 51. h4 {[%clk 0:00:10]}  gxh4 {[%clk 0:00:06]} 52. Bxh6 {[%clk 0:00:11]}  a5 {[%clk 0:00:06]} 53. g5 {[%clk 0:00:07]}  h3+ {[%clk 0:00:06]} 54. Kxh3 {[%clk 0:00:07]}  Nxf3 {[%clk 0:00:07]} 55. Rxe6 {[%clk 0:00:07]}  a4 {[%clk 0:00:05]} 56. g6 {[%clk 0:00:07]}  Bd4 {[%clk 0:00:04]} 57. g7 {[%clk 0:00:06]}  Bxg7 {[%clk 0:00:04]} 58. Re7+ {[%clk 0:00:07]}  Kc6 {[%clk 0:00:04]} 59. Bxg7 {[%clk 0:00:08]}  Kc5 {[%clk 0:00:03]} 60. Kg3 {[%clk 0:00:08]}  Nd2 {[%clk 0:00:03]} 61. Kf2 {[%clk 0:00:07]}  Ne4+ {[%clk 0:00:04]} 62. Ke3 {[%clk 0:00:07]}  Kc4 {[%clk 0:00:04]} 63. Rc7+ {[%clk 0:00:05]}  Kb3 {[%clk 0:00:05]} 64. Rb7 {[%clk 0:00:06]}  b4 {[%clk 0:00:05]} 65. Bf8 {[%clk 0:00:07]}  Nc3 {[%clk 0:00:04]} 66. Rxb4+ {[%clk 0:00:06]}  Kc2 {[%clk 0:00:00]} 67. Rb8 {[%clk 0:00:04]} 1-0


[Site "https://www.chess.com"]

[Event "Titled Tuesday Blitz June 20 Early 2023"]
[White "Skawinski, Arkadiusz"]
[Black "Lazavik, Denis"]
[WhiteFideId "1126415"]
[BlackFideId "13515110"]
[WhiteElo "2218"]
[BlackElo "2560"]
[Result "0-1"]
[Round "2"]
[TimeControl "180+2"]
[Date "2023.06.20"]
[WhiteClock "0:01:26"]
[BlackClock "0:02:06"]
[Board "7"]

1. e4 {[%clk 0:03:00]}  c5 {[%clk 0:03:00]} 2. Nf3 {[%clk 0:03:00]}  e6 {[%clk 0:03:01]} 3. c3 {[%clk 0:03:00]}  d5 {[%clk 0:02:59]} 4. exd5 {[%clk 0:03:01]}  Qxd5 {[%clk 0:02:57]} 5. d4 {[%clk 0:03:01]}  Nf6 {[%clk 0:02:58]} 6. Be3 {[%clk 0:02:58]}  cxd4 {[%clk 0:02:57]} 7. cxd4 {[%clk 0:02:57]}  Bb4+ {[%clk 0:02:56]} 8. Nc3 {[%clk 0:02:58]}  Qa5 {[%clk 0:02:56]} 9. Rc1 {[%clk 0:02:45]}  Qxa2 {[%clk 0:02:39]} 10. Qc2 {[%clk 0:02:21]}  Nd5 {[%clk 0:02:21]} 11. Bb5+ {[%clk 0:02:08]}  Bd7 {[%clk 0:02:15]} 12. O-O {[%clk 0:01:33]}  Bxc3 {[%clk 0:02:11]} 13. Bxd7+ {[%clk 0:01:33]}  Nxd7 {[%clk 0:02:10]} 14. bxc3 {[%clk 0:01:34]}  Qxc2 {[%clk 0:02:10]} 15. Rxc2 {[%clk 0:01:34]}  b5 {[%clk 0:02:08]} 16. c4 {[%clk 0:01:27]}  bxc4 {[%clk 0:02:08]} 17. Rxc4 {[%clk 0:01:28]}  Ke7 {[%clk 0:02:06]} 18. Rc7 {[%clk 0:01:26]} 0-1


[Site "https://www.chess.com"]

[Event "Titled Tuesday Blitz June 20 Early 2023"]
[White "Paravyan, David"]
[Black "Srdanovic, Jovana"]
[WhiteFideId "4194985"]
[BlackFideId "954810"]
[WhiteElo "2563"]
[BlackElo "2155"]
[Result "1-0"]
[Round "2"]
[TimeControl "180+2"]
[Date "2023.06.20"]
[WhiteClock "0:02:38"]
[BlackClock "0:00:14"]
[Board "10"]

1. e4 {[%clk 0:03:00]}  e5 {[%clk 0:02:53]} 2. Nf3 {[%clk 0:03:01]}  Nc6 {[%clk 0:02:53]} 3. Nc3 {[%clk 0:03:01]}  Nf6 {[%clk 0:02:52]} 4. d4 {[%clk 0:03:02]}  exd4 {[%clk 0:02:52]} 5. Nxd4 {[%clk 0:03:03]}  Bb4 {[%clk 0:02:52]} 6. Nxc6 {[%clk 0:03:04]}  bxc6 {[%clk 0:02:52]} 7. Bd3 {[%clk 0:03:04]}  d5 {[%clk 0:02:52]} 8. exd5 {[%clk 0:03:05]}  O-O {[%clk 0:02:52]} 9. O-O {[%clk 0:03:06]}  cxd5 {[%clk 0:02:52]} 10. h3 {[%clk 0:03:06]}  c6 {[%clk 0:02:47]} 11. Bf4 {[%clk 0:03:05]}  Be6 {[%clk 0:02:41]} 12. Ne2 {[%clk 0:03:03]}  Bd6 {[%clk 0:02:40]} 13. Qd2 {[%clk 0:03:02]}  Rb8 {[%clk 0:02:36]} 14. b3 {[%clk 0:03:01]}  Re8 {[%clk 0:02:32]} 15. Rfe1 {[%clk 0:03:00]}  Rb7 {[%clk 0:02:10]} 16. Nd4 {[%clk 0:02:58]}  Qc7 {[%clk 0:01:38]} 17. Bxd6 {[%clk 0:02:56]}  Qxd6 {[%clk 0:01:39]} 18. Re3 {[%clk 0:02:52]}  Rbe7 {[%clk 0:01:36]} 19. Rae1 {[%clk 0:02:51]}  Bd7 {[%clk 0:01:26]} 20. Rxe7 {[%clk 0:02:48]}  Rxe7 {[%clk 0:01:27]} 21. Rxe7 {[%clk 0:02:48]}  Qxe7 {[%clk 0:01:28]} 22. Qa5 {[%clk 0:02:48]}  Be8 {[%clk 0:01:22]} 23. Nf5 {[%clk 0:02:47]}  Qd7 {[%clk 0:01:14]} 24. Qc5 {[%clk 0:02:47]}  Ne4 {[%clk 0:00:55]} 25. Bxe4 {[%clk 0:02:43]}  dxe4 {[%clk 0:00:56]} 26. Ne7+ {[%clk 0:02:40]}  Kh8 {[%clk 0:00:54]} 27. Nxc6 {[%clk 0:02:40]}  h6 {[%clk 0:00:44]} 28. Qf8+ {[%clk 0:02:38]}  Kh7 {[%clk 0:00:44]} 29. Ne7 {[%clk 0:02:39]}  Qd1+ {[%clk 0:00:30]} 30. Kh2 {[%clk 0:02:39]}  Qd6+ {[%clk 0:00:19]} 31. g3 {[%clk 0:02:38]}  h5 {[%clk 0:00:16]} 32. Qg8+ {[%clk 0:02:37]}  Kh6 {[%clk 0:00:14]} 33. Nf5+ {[%clk 0:02:38]} 1-0


[Site "https://www.chess.com"]

[Event "Titled Tuesday Blitz June 20 Early 2023"]
[White "Ahmad, Khagan"]
[Black "Pranav, V"]
[WhiteFideId "13431552"]
[BlackFideId "25060783"]
[WhiteElo "2209"]
[BlackElo "2533"]
[Result "0-1"]
[Round "2"]
[TimeControl "180+2"]
[Date "2023.06.20"]
[WhiteClock "0:00:06"]
[BlackClock "0:00:09"]
[Board "11"]

1. d4 {[%clk 0:02:54]}  Nf6 {[%clk 0:03:00]} 2. c4 {[%clk 0:02:44]}  g6 {[%clk 0:02:56]} 3. Nc3 {[%clk 0:02:42]}  Bg7 {[%clk 0:02:56]} 4. Bf4 {[%clk 0:02:40]}  d6 {[%clk 0:02:57]} 5. e3 {[%clk 0:02:41]}  O-O {[%clk 0:02:57]} 6. h3 {[%clk 0:02:41]}  Nfd7 {[%clk 0:02:57]} 7. Nf3 {[%clk 0:02:41]}  e5 {[%clk 0:02:57]} 8. Bg3 {[%clk 0:02:41]}  Nc6 {[%clk 0:02:58]} 9. Be2 {[%clk 0:02:41]}  Re8 {[%clk 0:02:57]} 10. O-O {[%clk 0:02:41]}  exd4 {[%clk 0:02:48]} 11. Nxd4 {[%clk 0:02:10]}  Nc5 {[%clk 0:02:42]} 12. Bf3 {[%clk 0:02:08]}  Nxd4 {[%clk 0:02:38]} 13. exd4 {[%clk 0:02:08]}  Ne6 {[%clk 0:02:39]} 14. Ne2 {[%clk 0:02:03]}  Ng5 {[%clk 0:02:39]} 15. Qb3 {[%clk 0:01:45]}  Qf6 {[%clk 0:02:27]} 16. Nf4 {[%clk 0:01:21]}  Qxd4 {[%clk 0:02:20]} 17. Nd5 {[%clk 0:01:17]}  Ne6 {[%clk 0:02:16]} 18. Rfe1 {[%clk 0:00:48]}  Bd7 {[%clk 0:01:47]} 19. Rad1 {[%clk 0:00:26]}  Qxb2 {[%clk 0:01:42]} 20. Qxb2 {[%clk 0:00:23]}  Bxb2 {[%clk 0:01:43]} 21. Rb1 {[%clk 0:00:23]}  Bd4 {[%clk 0:01:34]} 22. Rxe6 {[%clk 0:00:22]}  Bxe6 {[%clk 0:01:26]} 23. Nxc7 {[%clk 0:00:23]}  Rac8 {[%clk 0:01:16]} 24. Nxe8 {[%clk 0:00:22]}  Rxe8 {[%clk 0:01:17]} 25. Bxb7 {[%clk 0:00:15]}  Bxc4 {[%clk 0:01:10]} 26. Rd1 {[%clk 0:00:14]}  Bc5 {[%clk 0:01:03]} 27. Bxd6 {[%clk 0:00:12]}  Rd8 {[%clk 0:01:02]} 28. Rc1 {[%clk 0:00:09]}  Rxd6 {[%clk 0:01:02]} 29. Rxc4 {[%clk 0:00:10]}  Rd1+ {[%clk 0:01:03]} 30. Kh2 {[%clk 0:00:10]}  Bxf2 {[%clk 0:01:03]} 31. Bf3 {[%clk 0:00:11]}  Ra1 {[%clk 0:00:58]} 32. a4 {[%clk 0:00:11]}  h5 {[%clk 0:00:58]} 33. h4 {[%clk 0:00:11]}  Kg7 {[%clk 0:00:57]} 34. g4 {[%clk 0:00:11]}  hxg4 {[%clk 0:00:53]} 35. Rxg4 {[%clk 0:00:11]}  Kf8 {[%clk 0:00:43]} 36. Rc4 {[%clk 0:00:11]}  Ra2 {[%clk 0:00:39]} 37. Kh3 {[%clk 0:00:11]}  Bb6 {[%clk 0:00:31]} 38. h5 {[%clk 0:00:10]}  Ra3 {[%clk 0:00:30]} 39. Kg2 {[%clk 0:00:09]}  g5 {[%clk 0:00:21]} 40. h6 {[%clk 0:00:10]}  Rd3 {[%clk 0:00:10]} 41. Be4 {[%clk 0:00:08]}  Rd2+ {[%clk 0:00:08]} 42. Kf3 {[%clk 0:00:07]}  Rh2 {[%clk 0:00:08]} 43. Rc8+ {[%clk 0:00:05]}  Ke7 {[%clk 0:00:08]} 44. h7 {[%clk 0:00:06]}  Bd4 {[%clk 0:00:08]} 45. Kg4 {[%clk 0:00:05]}  Rh4+ {[%clk 0:00:08]} 46. Kxg5 {[%clk 0:00:05]}  Rxe4 {[%clk 0:00:09]} 47. h8=Q {[%clk 0:00:06]}  Bxh8 {[%clk 0:00:09]} 48. Rxh8 {[%clk 0:00:07]}  Rxa4 {[%clk 0:00:09]} 49. Ra8 {[%clk 0:00:08]}  Ra5+ {[%clk 0:00:09]} 50. Kf4 {[%clk 0:00:08]}  Kf6 {[%clk 0:00:09]} 51. Rb8 {[%clk 0:00:08]}  Ra4+ {[%clk 0:00:09]} 52. Kf3 {[%clk 0:00:09]}  Kg5 {[%clk 0:00:09]} 53. Rg8+ {[%clk 0:00:09]}  Kf5 {[%clk 0:00:10]} 54. Rb8 {[%clk 0:00:10]}  Ra3+ {[%clk 0:00:10]} 55. Kf2 {[%clk 0:00:10]}  Kg5 {[%clk 0:00:09]} 56. Rb4 {[%clk 0:00:09]}  f5 {[%clk 0:00:09]} 57. Rc4 {[%clk 0:00:10]}  a5 {[%clk 0:00:09]} 58. Rd4 {[%clk 0:00:10]}  a4 {[%clk 0:00:08]} 59. Rc4 {[%clk 0:00:09]}  Ra1 {[%clk 0:00:08]} 60. Rc8 {[%clk 0:00:08]}  a3 {[%clk 0:00:08]} 61. Ra8 {[%clk 0:00:09]}  a2 {[%clk 0:00:08]} 62. Kg2 {[%clk 0:00:06]}  f4 {[%clk 0:00:09]} 0-1


[Site "https://www.chess.com"]

[Event "Titled Tuesday Blitz June 20 Early 2023"]
[White "Lenaerts, Lennert"]
[Black "Sviridov, Valery"]
[WhiteFideId "211435"]
[BlackFideId "4120680"]
[WhiteElo "2334"]
[BlackElo "2457"]
[Result "0-1"]
[Round "2"]
[TimeControl "180+2"]
[Date "2023.06.20"]
[WhiteClock "0:00:23"]
[BlackClock "0:00:16"]
[Board "14"]

1. d4 {[%clk 0:03:00]}  g6 {[%clk 0:02:54]} 2. c4 {[%clk 0:02:59]}  Bg7 {[%clk 0:02:55]} 3. e4 {[%clk 0:02:59]}  d6 {[%clk 0:02:54]} 4. Nc3 {[%clk 0:02:58]}  e5 {[%clk 0:02:55]} 5. d5 {[%clk 0:02:56]}  f5 {[%clk 0:02:54]} 6. exf5 {[%clk 0:02:56]}  gxf5 {[%clk 0:02:55]} 7. Qh5+ {[%clk 0:02:54]}  Kf8 {[%clk 0:02:56]} 8. f4 {[%clk 0:02:51]}  Nf6 {[%clk 0:02:55]} 9. Qd1 {[%clk 0:02:51]}  e4 {[%clk 0:02:51]} 10. Be2 {[%clk 0:02:46]}  Na6 {[%clk 0:02:49]} 11. Be3 {[%clk 0:02:46]}  Qe7 {[%clk 0:02:48]} 12. Qd2 {[%clk 0:02:46]}  Bd7 {[%clk 0:02:44]} 13. O-O-O {[%clk 0:02:46]}  h5 {[%clk 0:02:44]} 14. Nh3 {[%clk 0:02:44]}  Ng4 {[%clk 0:02:44]} 15. Bd4 {[%clk 0:02:44]}  Nc5 {[%clk 0:02:40]} 16. Bxg7+ {[%clk 0:02:41]}  Qxg7 {[%clk 0:02:41]} 17. Kb1 {[%clk 0:02:33]}  a5 {[%clk 0:02:38]} 18. Rde1 {[%clk 0:02:27]}  a4 {[%clk 0:02:34]} 19. Ng5 {[%clk 0:02:27]}  a3 {[%clk 0:02:32]} 20. b3 {[%clk 0:02:27]}  Nf2 {[%clk 0:02:18]} 21. Rhf1 {[%clk 0:02:25]}  Nfd3 {[%clk 0:02:19]} 22. Rd1 {[%clk 0:02:21]}  Qd4 {[%clk 0:01:57]} 23. g3 {[%clk 0:01:59]}  Ke7 {[%clk 0:01:55]} 24. Qc2 {[%clk 0:01:53]}  Qf6 {[%clk 0:01:48]} 25. Bxd3 {[%clk 0:01:49]}  Nxd3 {[%clk 0:01:48]} 26. Rxd3 {[%clk 0:01:50]}  exd3 {[%clk 0:01:48]} 27. Qxd3 {[%clk 0:01:51]}  Rae8 {[%clk 0:01:40]} 28. Nf3 {[%clk 0:01:31]}  Kf8 {[%clk 0:01:34]} 29. Nd4 {[%clk 0:01:28]}  h4 {[%clk 0:01:33]} 30. Rf2 {[%clk 0:01:14]}  hxg3 {[%clk 0:01:33]} 31. hxg3 {[%clk 0:01:15]}  Rh1+ {[%clk 0:01:31]} 32. Kc2 {[%clk 0:01:15]}  Ree1 {[%clk 0:01:30]} 33. b4 {[%clk 0:01:16]}  Qe7 {[%clk 0:01:20]} 34. Nxf5 {[%clk 0:01:07]}  Rc1+ {[%clk 0:01:19]} 35. Kb3 {[%clk 0:01:06]}  Qe1 {[%clk 0:01:14]} 36. Qd4 {[%clk 0:00:19]}  Rxc3+ {[%clk 0:00:54]} 37. Qxc3 {[%clk 0:00:19]}  Qxc3+ {[%clk 0:00:54]} 38. Kxc3 {[%clk 0:00:20]}  Bxf5 {[%clk 0:00:55]} 39. Kb3 {[%clk 0:00:21]}  Re1 {[%clk 0:00:39]} 40. Rf3 {[%clk 0:00:20]}  Bg4 {[%clk 0:00:35]} 41. Rc3 {[%clk 0:00:20]}  Ke7 {[%clk 0:00:34]} 42. Kxa3 {[%clk 0:00:20]}  Kd7 {[%clk 0:00:27]} 43. Kb2 {[%clk 0:00:20]}  Re2+ {[%clk 0:00:26]} 44. Kb3 {[%clk 0:00:20]}  Rg2 {[%clk 0:00:21]} 45. a4 {[%clk 0:00:20]}  Bd1+ {[%clk 0:00:20]} 46. Ka3 {[%clk 0:00:20]}  Rf2 {[%clk 0:00:19]} 47. a5 {[%clk 0:00:20]}  Bg4 {[%clk 0:00:18]} 48. b5 {[%clk 0:00:21]}  Rf1 {[%clk 0:00:17]} 49. Kb4 {[%clk 0:00:20]}  Rb1+ {[%clk 0:00:18]} 50. Rb3 {[%clk 0:00:20]}  Ra1 {[%clk 0:00:18]} 51. Ra3 {[%clk 0:00:20]}  Rb1+ {[%clk 0:00:14]} 52. Rb3 {[%clk 0:00:20]}  Rc1 {[%clk 0:00:13]} 53. a6 {[%clk 0:00:19]}  bxa6 {[%clk 0:00:14]} 54. bxa6 {[%clk 0:00:20]}  Kc8 {[%clk 0:00:15]} 55. Ra3 {[%clk 0:00:17]}  Rb1+ {[%clk 0:00:14]} 56. Kc3 {[%clk 0:00:16]}  Kb8 {[%clk 0:00:15]} 57. Rb3+ {[%clk 0:00:16]}  Rxb3+ {[%clk 0:00:14]} 58. Kxb3 {[%clk 0:00:17]}  Ka7 {[%clk 0:00:15]} 59. Kc3 {[%clk 0:00:17]}  Kxa6 {[%clk 0:00:16]} 60. Kd4 {[%clk 0:00:18]}  Kb6 {[%clk 0:00:16]} 61. Ke4 {[%clk 0:00:19]}  Kc5 {[%clk 0:00:17]} 62. f5 {[%clk 0:00:20]}  Kxc4 {[%clk 0:00:17]} 63. f6 {[%clk 0:00:21]}  Bh5 {[%clk 0:00:16]} 64. Kf5 {[%clk 0:00:22]}  Kxd5 {[%clk 0:00:14]} 65. g4 {[%clk 0:00:22]}  Bxg4+ {[%clk 0:00:15]} 66. Kxg4 {[%clk 0:00:23]}  Ke6 {[%clk 0:00:15]} 67. Kg5 {[%clk 0:00:24]}  Kf7 {[%clk 0:00:15]} 68. Kf5 {[%clk 0:00:23]}  c5 {[%clk 0:00:16]} 0-1


[Site "https://www.chess.com"]

[Event "Titled Tuesday Blitz June 20 Early 2023"]
[White "Puranik, Abhimanyu"]
[Black "Taichman, Ori"]
[WhiteFideId "5061245"]
[BlackFideId "2804069"]
[WhiteElo "2460"]
[BlackElo "2237"]
[Result "1-0"]
[Round "2"]
[TimeControl "180+2"]
[Date "2023.06.20"]
[WhiteClock "0:02:26"]
[BlackClock "0:01:26"]
[Board "15"]

1. e4 {[%clk 0:03:00]}  e5 {[%clk 0:02:58]} 2. Nf3 {[%clk 0:03:00]}  d6 {[%clk 0:02:58]} 3. d4 {[%clk 0:02:59]}  exd4 {[%clk 0:02:59]} 4. Nxd4 {[%clk 0:03:00]}  Nf6 {[%clk 0:02:59]} 5. Nc3 {[%clk 0:03:01]}  Be7 {[%clk 0:03:00]} 6. Bc4 {[%clk 0:02:57]}  O-O {[%clk 0:02:59]} 7. O-O {[%clk 0:02:55]}  a6 {[%clk 0:03:00]} 8. a4 {[%clk 0:02:52]}  Nxe4 {[%clk 0:03:00]} 9. Nxe4 {[%clk 0:02:50]}  d5 {[%clk 0:03:00]} 10. Qe2 {[%clk 0:02:48]}  dxc4 {[%clk 0:02:56]} 11. Rd1 {[%clk 0:02:47]}  Qd5 {[%clk 0:02:02]} 12. Bf4 {[%clk 0:02:46]}  Bf5 {[%clk 0:01:29]} 13. Nc3 {[%clk 0:02:43]}  Qc5 {[%clk 0:01:26]} 14. Nxf5 {[%clk 0:02:28]}  Qxf5 {[%clk 0:01:27]} 15. Qxe7 {[%clk 0:02:28]}  Qxf4 {[%clk 0:01:26]} 16. Rd8 {[%clk 0:02:27]}  Nc6 {[%clk 0:01:26]} 17. Qxf8# {[%clk 0:02:26]} 1-0


[Site "https://www.chess.com"]

[Event "Titled Tuesday Blitz June 20 Early 2023"]
[White "ATM622"]
[Black "Terry, Renato"]
[BlackFideId "3803457"]
[WhiteElo "2608"]
[BlackElo "2575"]
[Result "0-1"]
[Round "2"]
[TimeControl "180+2"]
[Date "2023.06.20"]
[WhiteClock "0:00:57"]
[BlackClock "0:00:23"]
[Board "16"]

1. d4 {[%clk 0:03:00]}  d5 {[%clk 0:02:59]} 2. c4 {[%clk 0:03:00]}  dxc4 {[%clk 0:02:59]} 3. e3 {[%clk 0:03:00]}  Nf6 {[%clk 0:02:58]} 4. Bxc4 {[%clk 0:03:00]}  e6 {[%clk 0:02:59]} 5. Nf3 {[%clk 0:02:59]}  a6 {[%clk 0:03:00]} 6. a4 {[%clk 0:02:59]}  c5 {[%clk 0:03:00]} 7. O-O {[%clk 0:02:58]}  Nc6 {[%clk 0:03:00]} 8. Nc3 {[%clk 0:02:54]}  Be7 {[%clk 0:02:59]} 9. d5 {[%clk 0:02:53]}  Na5 {[%clk 0:02:52]} 10. Ba2 {[%clk 0:02:50]}  c4 {[%clk 0:02:51]} 11. e4 {[%clk 0:02:49]}  Bb4 {[%clk 0:02:40]} 12. Bg5 {[%clk 0:02:45]}  h6 {[%clk 0:02:40]} 13. Bh4 {[%clk 0:02:43]}  g5 {[%clk 0:02:28]} 14. Bg3 {[%clk 0:02:43]}  Bxc3 {[%clk 0:02:29]} 15. bxc3 {[%clk 0:02:42]}  O-O {[%clk 0:02:22]} 16. Qd4 {[%clk 0:02:31]}  exd5 {[%clk 0:02:22]} 17. Be5 {[%clk 0:02:30]}  Nc6 {[%clk 0:02:17]} 18. Bxf6 {[%clk 0:02:27]}  Nxd4 {[%clk 0:02:17]} 19. Bxd8 {[%clk 0:02:26]}  Ne2+ {[%clk 0:02:05]} 20. Kh1 {[%clk 0:02:25]}  Rxd8 {[%clk 0:02:06]} 21. exd5 {[%clk 0:02:22]}  b5 {[%clk 0:02:06]} 22. Bb1 {[%clk 0:02:15]}  Bb7 {[%clk 0:02:00]} 23. Ra3 {[%clk 0:02:13]}  Bxd5 {[%clk 0:01:57]} 24. Bf5 {[%clk 0:02:06]}  bxa4 {[%clk 0:01:23]} 25. Re1 {[%clk 0:01:59]}  Re8 {[%clk 0:01:22]} 26. Rea1 {[%clk 0:01:57]}  Bc6 {[%clk 0:01:20]} 27. h4 {[%clk 0:01:53]}  gxh4 {[%clk 0:01:03]} 28. Nxh4 {[%clk 0:01:49]}  Re5 {[%clk 0:01:02]} 29. Bg4 {[%clk 0:01:47]}  Nf4 {[%clk 0:00:55]} 30. Bf3 {[%clk 0:01:45]}  Nd5 {[%clk 0:00:53]} 31. g3 {[%clk 0:01:41]}  Rb8 {[%clk 0:00:52]} 32. Ng2 {[%clk 0:01:38]}  Rb3 {[%clk 0:00:52]} 33. Nf4 {[%clk 0:01:36]}  Nxf4 {[%clk 0:00:39]} 34. Bxc6 {[%clk 0:01:37]}  Rh5+ {[%clk 0:00:37]} 35. Kg1 {[%clk 0:01:36]}  Ne2+ {[%clk 0:00:38]} 36. Kg2 {[%clk 0:01:34]}  Nxc3 {[%clk 0:00:39]} 37. Bxa4 {[%clk 0:01:31]}  Rxa3 {[%clk 0:00:34]} 38. Rxa3 {[%clk 0:01:32]}  Ra5 {[%clk 0:00:31]} 39. Rxc3 {[%clk 0:01:29]}  Rxa4 {[%clk 0:00:32]} 40. Kf3 {[%clk 0:01:30]}  Kg7 {[%clk 0:00:30]} 41. Ke4 {[%clk 0:01:30]}  Kg6 {[%clk 0:00:31]} 42. g4 {[%clk 0:01:24]}  Kg5 {[%clk 0:00:30]} 43. f3 {[%clk 0:01:25]}  Rb4 {[%clk 0:00:28]} 44. Kd4 {[%clk 0:01:21]}  Rb3 {[%clk 0:00:26]} 45. Rxc4 {[%clk 0:01:17]}  Rxf3 {[%clk 0:00:26]} 46. Rc6 {[%clk 0:01:13]}  Rf6 {[%clk 0:00:26]} 47. Rc5+ {[%clk 0:01:07]}  Kxg4 {[%clk 0:00:26]} 48. Ke3 {[%clk 0:01:08]}  h5 {[%clk 0:00:25]} 49. Rc4+ {[%clk 0:01:08]}  Kg3 {[%clk 0:00:25]} 50. Rc5 {[%clk 0:01:08]}  Kg4 {[%clk 0:00:20]} 51. Rc4+ {[%clk 0:01:08]}  Kg5 {[%clk 0:00:21]} 52. Rc5+ {[%clk 0:01:07]}  Rf5 {[%clk 0:00:21]} 53. Rc6 {[%clk 0:01:08]}  a5 {[%clk 0:00:21]} 54. Ra6 {[%clk 0:01:07]}  h4 {[%clk 0:00:21]} 55. Ra8 {[%clk 0:01:07]}  h3 {[%clk 0:00:21]} 56. Rg8+ {[%clk 0:01:06]}  Kh4 {[%clk 0:00:22]} 57. Rh8+ {[%clk 0:01:06]}  Kg4 {[%clk 0:00:22]} 58. Rg8+ {[%clk 0:01:07]}  Rg5 {[%clk 0:00:22]} 59. Rh8 {[%clk 0:01:03]}  Kg3 {[%clk 0:00:23]} 60. Ke2 {[%clk 0:00:57]}  Kg2 {[%clk 0:00:23]} 0-1


[Site "https://www.chess.com"]